bitfinex/quotes_ETHUSD_20220118
["timestamp","ask_amount","ask_price","bid_price","bid_amount"]
[1642539608762,0.128,3124.3,3123.4,0.80672265]
[1642539609163,1.48237361,3124.5,3123.9,2.11543588]
[1642539609362,0.128,3124.4,3123.8,0.12072853]
[1642539609562,0.128,3124.4,3124.0,0.00284211]
[1642539609563,18.908,3124.4,3124.0,0.00284211]
[1642539609764,21.64025284,3124.3,3123.9,0.00341054]
[1642539609962,21.59290287,3124.3,3123.9,0.00341054]
[1642539610361,2.14897892,3124.1,3123.9,0.00341054]
[1642539610563,0.8005204,3124.3,3123.9,0.00341054]
[1642539610764,0.128,3124.4,3123.9,0.00341054]
[1642539611569,1.4002073,3124.0,3123.9,0.00341054]
[1642539611965,1.8603973,3124.0,3123.9,0.00341054]
[1642539612239,5.6,3123.9,3122.9,0.128]
[1642539612443,5.6,3123.9,3122.8,3.7982]
[1642539612444,2.94487832,3123.7,3122.8,3.7982]
[1642539612639,0.8008064,3123.4,3123.0,0.00511581]
[1642539612842,0.88081255,3123.4,3123.0,0.00511581]
[1642539613042,1.87074219,3122.6,3122.3,0.128]
[1642539613240,0.00170527,3123.3,3122.3,0.128]
[1642539613441,0.00170527,3123.3,3122.2,0.128]
[1642539613640,0.128,3123.4,3122.4,0.80074]
[1642539613641,0.00113685,3123.2,3122.4,0.80074]
[1642539614041,0.00170527,3123.3,3122.6,1.25334374]
[1642539614442,1.62925965,3123.5,3123.1,2.05088758]
[1642539614443,0.00113685,3123.2,3123.1,2.05088758]
[1642539615644,0.00113685,3123.2,3123.1,2.85136758]
[1642539615842,0.00113685,3123.2,3123.1,2.92936758]
[1642539616868,0.00113685,3123.2,3123.1,3.22936758]
[1642539617067,0.01274562,3124.7,3123.4,0.8003]
[1642539617267,2.85658764,3124.9,3123.8,0.8003]
[1642539617471,0.00682108,3124.4,3123.8,0.128]
[1642539617867,2.72858764,3124.9,3123.8,0.128]
[1642539617868,0.00625266,3124.3,3123.8,0.128]
[1642539618072,0.00625266,3124.3,3123.9,0.462]
[1642539618268,1.6944881,3125.3,3123.9,0.462]
[1642539618269,0.00568423,3124.2,3124.0,0.128]
[1642539618469,0.00568423,3124.2,3124.1,6.062]
[1642539618670,1.5664881,3125.3,3124.1,8.15317485]
[1642539618871,1.5664881,3125.3,3124.3,3.2001402]
[1642539619070,0.01136847,3125.2,3124.4,0.462]
[1642539619270,0.01136847,3125.2,3124.4,1.462]
[1642539619570,0.01080004,3125.1,3124.4,3.32858]
[1642539619813,0.01080004,3125.1,3124.4,2.52853]
[1642539620014,0.01023162,3125.0,3124.8,1.51467891]
[1642539620219,0.01023162,3125.0,3124.8,2.29827891]
[1642539620518,1.5664881,3125.3,3124.8,2.29827891]
[1642539620519,0.85209599,3125.3,3124.9,5.6]
[1642539620819,0.00170527,3125.3,3125.1,5.6]
[1642539621013,0.00170527,3125.3,3125.2,6.1899]
[1642539621217,0.00170527,3125.3,3125.2,9.31496564]
[1642539621516,2.85648764,3126.5,3125.3,5.6]
[1642539621816,0.00682108,3126.4,3125.7,0.79982]
[1642539622015,0.23809,3126.3,3125.2,5.84736564]
[1642539622215,0.23809,3126.3,3125.8,1.81253437]
[1642539622216,0.24434266,3126.3,3125.8,1.81253437]
[1642539622414,0.24434266,3126.3,3125.6,1.28740133]
[1642539622415,0.00568423,3126.2,3125.6,1.28740133]
[1642539622614,0.00568423,3126.2,3125.0,3.75343685]
[1642539622615,0.1279,3126.1,3125.0,3.75343685]
[1642539622918,0.00454739,3126.0,3125.0,0.00113685]
[1642539623115,0.1279,3125.9,3125.0,0.00113685]
[1642539623318,0.13187896,3125.9,3124.9,0.00170527]
[1642539623585,2.23248751,3125.5,3124.9,2.12111222]
[1642539623778,0.1279,3125.7,3124.9,3.38297105]
[1642539623977,0.00113684,3125.4,3125.0,0.00113685]
[1642539624177,0.16019,3125.4,3125.0,0.00113685]
[1642539624379,0.00227369,3125.6,3125.0,0.00113685]
[1642539624380,0.1279,3125.3,3125.0,0.00113685]
[1642539624581,0.1279,3125.5,3125.0,0.00113685]
[1642539624782,0.12960527,3125.5,3125.0,0.00113685]
[1642539624981,0.00113684,3125.4,3125.0,0.00113685]
[1642539625384,0.13074211,3125.7,3125.0,0.00113685]
[1642539625784,0.00227369,3125.6,3125.0,0.00113685]
[1642539625988,0.1279,3125.5,3125.0,0.00113685]
[1642539626284,0.00113684,3125.4,3124.6,0.00341054]
[1642539626486,0.128,3125.3,3124.6,0.00341054]
[1642539626786,1.43534927,3125.0,3124.4,0.00454739]
[1642539627085,1.0885115,3125.3,3124.4,0.00454739]
[1642539627309,0.80034,3125.1,3124.4,0.00454739]
[1642539627510,0.128,3125.0,3124.2,0.00568424]
[1642539627911,2.19511961,3125.0,3124.2,0.00568424]
[1642539628311,23.99213057,3125.0,3124.2,0.00568424]
[1642539628511,1.16019,3124.9,3123.9,0.00738951]
[1642539628712,0.80048,3124.7,3123.9,0.00738951]
[1642539628911,0.128,3124.6,3123.9,0.00738951]
[1642539629111,1.67992618,3124.0,3123.9,0.00738951]
[1642539629412,0.128,3124.7,3123.9,0.00738951]
[1642539629815,0.128,3124.7,3123.7,1.80041]
[1642539629816,0.128,3124.7,3124.0,0.128]
[1642539630012,0.128,3124.7,3123.9,0.128]
[1642539630312,0.128,3124.7,3124.2,1.77223355]
[1642539630513,0.128,3124.7,3124.2,2.70051355]
[1642539630817,0.128,3124.7,3124.3,1.00511581]
[1642539631062,0.128,3124.7,3124.4,0.128]
[1642539631262,0.128,3124.7,3124.4,0.13254739]
[1642539631462,0.128,3124.7,3124.5,0.00397897]
[1642539631662,0.128,3124.7,3124.6,4.328]
[1642539631864,0.128,3124.7,3124.5,0.80406897]
[1642539632066,0.128,3124.7,3124.6,3.65341054]
[1642539632268,0.128,3124.7,3124.6,0.00341054]
[1642539632669,0.128,3124.7,3124.5,0.00397897]
[1642539632869,0.128,3124.7,3124.6,0.128]
[1642539633072,0.128,3124.7,3124.5,0.13197897]
[1642539633270,0.128,3124.7,3124.6,0.00341054]
[1642539633472,0.1321957,3124.7,3124.6,0.00341054]
[1642539633670,0.1321957,3124.7,3124.4,0.00454739]
[1642539633872,0.0041957,3124.7,3124.4,0.00454739]
[1642539634071,5.1,3124.5,3124.4,0.00454739]
[1642539634273,5.228,3124.5,3124.3,0.00511581]
[1642539634471,4.63819,3124.4,3123.8,0.00795793]
[1642539634908,4.478,3124.4,3123.8,0.00795793]
[1642539635107,0.128,3124.5,3123.8,0.00795793]
[1642539636915,0.128,3124.5,3124.1,2.31557536]
[1642539637215,3.83845217,3124.6,3124.2,0.00568424]
[1642539637815,3.83845217,3124.6,3123.6,0.00909478]
[1642539638467,2.02521532,3124.0,3123.5,0.0096632]
[1642539638672,2.83524941,3123.9,3123.5,0.0096632]
[1642539638874,1.53831256,3123.8,3123.5,0.0096632]
[1642539639073,2.82364633,3123.7,3123.5,0.0096632]
[1642539639274,1.53831256,3123.8,3123.0,0.01250532]
[1642539639477,3.59385139,3123.7,3123.0,0.01250532]
[1642539639877,0.8007046,3123.6,3123.2,1.87082942]
[1642539640078,0.8007046,3123.6,3123.0,0.01250532]
[1642539640274,0.8007046,3123.6,3123.3,0.01080005]
[1642539640475,0.8007046,3123.6,3123.0,0.01250532]
[1642539640476,0.16019,3123.4,3123.0,0.01250532]
[1642539640676,0.96093,3123.4,3123.0,0.01250532]
[1642539640877,0.128,3123.5,3123.0,0.01250532]
[1642539641076,0.16019,3123.5,3123.0,0.01250532]
[1642539641284,1.96631256,3123.8,3123.0,0.01250532]
[1642539641285,0.16019,3123.4,3123.0,0.01250532]
[1642539641477,2.26631256,3123.8,3123.0,0.01250532]
[1642539641478,0.128,3123.3,3123.0,0.01250532]
[1642539641680,0.40363053,3124.3,3123.0,0.01250532]
[1642539641681,0.128,3123.7,3123.0,0.01250532]
[1642539642077,0.128,3123.7,3123.1,1.26256]
[1642539642338,0.00418792,3124.5,3123.4,5.6]
[1642539642539,0.00418792,3124.5,3123.5,4.60701096]
[1642539642736,0.00418792,3124.5,3123.5,1.8996632]
[1642539642937,0.00418792,3124.5,3123.6,0.00909478]
[1642539643137,0.00418792,3124.5,3123.8,0.8003]
[1642539643336,0.00418792,3124.5,3123.9,0.59]
[1642539643538,0.128,3125.0,3124.0,0.462]
[1642539643839,0.28819,3125.3,3124.1,0.13425266]
[1642539644037,0.16019,3125.0,3124.1,0.46825266]
[1642539644236,0.128,3125.3,3124.1,0.46825266]
[1642539644237,0.80029,3124.9,3124.2,0.00568424]
[1642539644436,1.28839878,3124.7,3124.2,0.00568424]
[1642539644637,1.28839878,3124.7,3124.2,0.80597424]
[1642539644938,0.80029,3124.9,3124.3,0.00511581]
[1642539645136,0.128,3125.1,3124.8,2.22700499]
[1642539645338,0.128,3125.2,3124.8,2.22700499]
[1642539645537,0.00113684,3125.4,3124.9,0.00170527]
[1642539648071,0.80035,3125.2,3124.9,0.00170527]
[1642539648273,5.61019,3125.0,3124.9,0.00170527]
[1642539648472,5.73819,3125.0,3124.1,0.00625266]
[1642539648672,0.28819,3125.0,3123.8,0.13595793]
[1642539648878,0.28819,3125.0,3123.9,1.60794951]
[1642539649081,0.16019,3125.0,3124.2,1.29737005]
[1642539649478,0.80042,3124.8,3124.3,0.00511581]
[1642539649713,0.80042,3124.8,3124.4,1.92597962]
[1642539650116,0.80042,3124.8,3124.5,0.00397897]
[1642539651518,0.128,3125.3,3124.5,0.00397897]
[1642539651721,1.60154684,3125.4,3124.8,1.54842622]
[1642539651722,0.00113684,3125.4,3124.8,1.54842622]
[1642539651918,0.00113684,3125.4,3124.9,2.12546925]
[1642539652119,0.00113684,3125.4,3124.9,2.12717452]
[1642539652321,0.00113684,3125.4,3125.0,0.00113685]
[1642539652523,0.80026,3125.2,3125.0,0.00113685]
[1642539652720,0.80026,3125.2,3124.3,0.00511581]
[1642539652921,2.75881484,3125.1,3124.2,0.00568424]
[1642539653226,0.8003746,3124.8,3124.2,0.00568424]
[1642539653488,4.02827712,3124.7,3124.2,0.00568424]
[1642539653690,1.6010867,3124.6,3123.8,0.00795793]
[1642539653890,0.128,3124.5,3123.8,0.00795793]
[1642539654293,0.16019,3124.4,3123.8,0.00795793]
[1642539654490,0.128,3124.3,3123.8,0.00795793]
[1642539654693,0.16019,3124.4,3123.8,0.00795793]
[1642539654890,0.8005,3124.2,3123.8,0.00795793]
[1642539655090,0.8005,3124.2,3123.7,0.00852635]
[1642539655291,4.05208598,3124.2,3123.7,0.00852635]
[1642539655496,0.3,3124.1,3123.7,0.00852635]
[1642539655691,0.3,3124.1,3123.1,0.128]
[1642539655692,22.14195356,3124.0,3123.4,0.01023162]
[1642539655893,22.14195356,3124.0,3123.2,0.01136847]
[1642539655894,0.80078,3123.8,3123.2,0.01136847]
[1642539656091,3.38297424,3123.7,3123.2,0.01136847]
[1642539656291,0.8008145,3123.6,3123.0,0.01250532]
[1642539656491,1.20318361,3123.4,3123.0,0.01250532]
[1642539656693,0.16019,3123.3,3123.0,0.01250532]
[1642539656896,0.16019,3123.3,3122.7,0.01421059]
[1642539656897,0.128,3123.2,3122.7,0.01421059]
[1642539657092,0.8009,3123.1,3122.7,0.01421059]
[1642539657324,0.28819,3123.0,3122.7,0.01421059]
[1642539657624,0.28819,3123.0,3122.4,2.2343716]
[1642539657625,0.8009335,3122.9,3122.4,2.2343716]
[1642539658022,0.8009335,3122.9,3122.5,0.01534744]
[1642539658623,0.16019,3122.8,3122.5,0.01534744]
[1642539658823,1.7621066,3122.8,3122.5,0.01534744]
[1642539659023,4.55475118,3122.8,3122.2,0.01705271]
[1642539659223,4.68275118,3122.8,3122.2,0.01705271]
[1642539659723,4.71286513,3122.8,3122.2,0.01705271]
[1642539659922,1.52045263,3122.3,3122.2,0.01705271]
[1642539660125,1.52045263,3122.3,3122.0,0.01818955]
[1642539660325,1.60187,3122.4,3122.0,0.01818955]
[1642539660526,0.16019,3122.6,3121.8,0.0193264]
[1642539661172,0.80085,3122.5,3121.8,0.0193264]
[1642539661371,1.39915177,3122.2,3121.8,0.0193264]
[1642539661773,1.39915177,3122.2,3121.6,0.02046325]
[1642539661975,0.16019,3122.6,3121.6,0.02046325]
[1642539662173,0.16019,3122.6,3121.9,2.71860203]
[1642539662372,0.80106,3122.2,3122.1,1.88540754]
[1642539662573,1.60212,3122.3,3122.1,1.88540754]
[1642539662773,0.16019,3122.6,3122.1,1.90302867]
[1642539662973,1.11599196,3122.4,3122.2,0.01705271]
[1642539663374,1.11599196,3122.4,3121.8,0.0193264]
[1642539663573,1.91696196,3122.4,3121.8,0.0193264]
[1642539664578,1.91696196,3122.4,3121.6,0.02046325]
[1642539664579,0.80106,3122.3,3121.6,0.02046325]
[1642539664850,0.80102,3122.2,3121.5,0.02103167]
[1642539665037,0.80102,3122.2,3121.9,4.71132916]
[1642539665236,0.80102,3122.2,3121.9,2.71860263]
[1642539665440,0.80102,3122.2,3122.0,0.01818955]
[1642539666244,1.65453477,3122.1,3121.6,0.02046325]
[1642539666441,1.65453477,3122.1,3121.5,0.02103167]
[1642539666641,0.03263836,3122.2,3121.5,0.02103167]
[1642539666842,0.80097,3122.1,3121.7,0.80092]
[1642539667042,0.80097,3122.1,3121.5,0.02103167]
[1642539667248,0.80097,3122.1,3121.8,0.0193264]
[1642539667443,0.80097,3122.1,3121.5,0.02103167]
[1642539667742,0.3,3122.0,3121.5,0.02103167]
[1642539667942,0.3,3122.0,3121.6,2.71866171]
[1642539668142,1.10104,3122.0,3121.6,2.71866171]
[1642539668343,1.10104,3122.0,3121.7,0.01989482]
[1642539668565,1.902129,3122.0,3121.7,0.01989482]
[1642539668764,1.602129,3122.0,3121.7,0.01989482]
[1642539669464,0.80104,3122.0,3121.7,0.01989482]
[1642539669667,0.80104,3122.0,3121.7,3.11989482]
[1642539670067,0.80104,3122.0,3121.8,0.0193264]
[1642539670269,1.6415948,3122.0,3121.8,0.0193264]
[1642539670467,1.77205267,3121.9,3121.8,0.0193264]
[1642539670866,5.6,3121.8,3121.7,1.53421824]
[1642539671068,2.87324717,3121.9,3121.7,0.49093483]
[1642539671267,1.33852951,3121.8,3121.7,0.49093483]
[1642539673426,1.6023295,3121.7,3121.2,3.8607]
[1642539673625,1.6023295,3121.7,3120.9,1.1252]
[1642539673626,0.80119,3121.6,3120.9,1.1252]
[1642539673825,0.80119,3121.6,3120.8,7.45737539]
[1642539673826,1.10119,3121.6,3121.3,0.00284212]
[1642539674225,1.10119,3121.6,3120.9,0.00511581]
[1642539674426,1.10119,3121.6,3120.8,0.00568423]
[1642539674427,1.87726447,3121.0,3120.8,0.00568423]
[1642539674826,0.3,3120.9,3120.8,0.00568423]
[1642539675028,0.3,3120.9,3120.5,0.00738951]
[1642539675225,1.90267,3121.2,3120.5,0.00738951]
[1642539675972,0.80134,3121.1,3120.5,0.00738951]
[1642539676267,0.0214507,3120.9,3120.5,1.81129258]
[1642539676466,0.80126,3120.8,3120.5,1.81129258]
[1642539676667,0.80126,3120.8,3120.6,0.00682108]
[1642539677067,0.80126,3120.8,3120.4,0.00795793]
[1642539677776,2.19097217,3120.7,3120.4,0.00795793]
[1642539678272,2.19097217,3120.7,3119.9,0.01080005]
[1642539678874,3.79389217,3120.7,3119.9,0.01080005]
[1642539679074,1.6029,3120.4,3119.9,0.01080005]
[1642539679475,1.9029,3120.4,3119.9,0.01080005]
[1642539680523,1.6029,3120.4,3119.9,2.34719405]
[1642539680725,0.92932,3120.8,3119.9,2.34719405]
[1642539680726,0.128,3120.8,3120.0,2.741881]
[1642539680925,0.128,3120.8,3120.1,0.462]
[1642539681125,0.03196255,3120.3,3120.2,3.07689111]
[1642539681323,0.03196255,3120.3,3120.2,6.07109478]
[1642539681524,0.128,3120.8,3120.4,3.86446169]
[1642539681725,0.128,3120.8,3120.5,2.46858216]
[1642539681927,0.128,3120.8,3120.6,0.128]
[1642539682127,0.128,3120.8,3120.6,0.13482108]
[1642539682327,0.0001,3120.8,3120.7,5.60625266]
[1642539682530,0.5405548,3122.0,3120.8,5.728]
[1642539682531,2.1425548,3122.0,3120.8,5.728]
[1642539682728,2.1425548,3122.0,3120.9,4.87212084]
[1642539682930,2.1425548,3122.0,3121.3,1.72317679]
[1642539682931,1.79397871,3121.9,3121.3,1.72317679]
[1642539683127,2.1425548,3122.0,3121.4,0.128]
[1642539683128,0.80107,3121.6,3121.4,0.128]
[1642539683327,0.80107,3121.6,3121.4,0.00227369]
[1642539683568,0.80107,3121.6,3121.5,0.00170527]
[1642539683769,0.80107,3121.6,3121.3,1.72317679]
[1642539683770,2.70325,3121.6,3121.4,0.00227369]
[1642539684576,2.70325,3121.6,3121.2,0.00341054]
[1642539684773,2.40325,3121.6,3121.2,0.00341054]
[1642539685376,0.3,3121.5,3121.3,1.85729995]
[1642539685578,0.128,3121.4,3121.2,0.00341054]
[1642539685775,0.80126,3121.2,3120.5,5.0887]
[1642539685975,2.40377,3121.2,3120.5,1.232]
[1642539686175,2.40377,3121.2,3120.4,3.99246169]
[1642539686578,2.40377,3121.2,3120.5,2.31040294]
[1642539686778,0.3,3121.1,3120.5,2.31040294]
[1642539686979,1.9025,3121.1,3120.6,0.00682108]
[1642539687218,1.9025,3121.1,3120.6,0.13482108]
[1642539687622,1.9025,3121.1,3120.7,0.46825266]
[1642539688023,1.9025,3121.1,3120.8,0.00568423]
[1642539688724,1.9025,3121.1,3120.9,1.34897527]
[1642539688923,1.6025,3121.1,3120.9,1.34897527]
[1642539689124,0.128,3121.7,3121.0,0.00454739]
[1642539689424,0.3,3121.5,3121.1,0.128]
[1642539689625,0.3,3121.8,3121.0,0.46654739]
[1642539689825,1.6021,3121.7,3121.2,0.00341054]
[1642539690025,1.9021,3121.7,3121.3,2.21550188]
[1642539690326,0.801,3121.6,3121.4,0.00227369]
[1642539690525,0.6685548,3122.0,3121.4,3.22555778]
[1642539690526,0.5405548,3122.0,3121.4,3.22555778]
[1642539690828,0.5405548,3122.0,3121.5,0.00170527]
[1642539691089,0.5405548,3122.0,3121.6,0.128]
[1642539691492,0.5405548,3122.0,3121.6,1.5299721]
[1642539692088,0.5405548,3122.0,3121.6,0.128]
[1642539692688,0.5405548,3122.0,3121.7,0.80089]
[1642539692890,0.5405548,3122.0,3121.8,2.12346841]
[1642539693089,0.8405548,3122.0,3121.8,2.12346841]
[1642539693691,0.80112,3121.8,3121.5,0.00170527]
[1642539693891,1.60227,3121.8,3121.5,0.00170527]
[1642539694090,0.3,3121.7,3121.1,0.00397896]
[1642539694720,0.3,3121.7,3121.1,1.22201433]
[1642539694921,0.3,3121.7,3121.2,2.02620089]
[1642539695222,0.3,3121.7,3121.3,0.00284212]
[1642539695420,1.9023,3121.7,3121.3,0.00284212]
[1642539695622,0.80109,3121.6,3121.3,0.00284212]
[1642539695821,1.60215,3121.6,3121.3,0.00284212]
[1642539696426,1.56383904,3121.5,3121.3,0.00284212]
[1642539696825,1.56383904,3121.5,3121.3,2.72261577]
[1642539697025,1.86383904,3121.5,3121.3,2.72261577]
[1642539697228,0.128,3121.4,3121.3,2.71977365]
[1642539697627,0.128,3121.4,3121.3,2.72261577]
[1642539697825,0.128,3121.4,3120.6,7.89078364]
[1642539698126,1.44251292,3120.9,3120.7,0.00341054]
[1642539698327,0.128,3121.0,3120.7,0.00341054]
[1642539698976,0.92931,3121.0,3120.7,0.00341054]
[1642539699372,0.8013204,3120.9,3120.7,0.00341054]
[1642539699573,0.8013204,3120.9,3120.7,2.30681204]
[1642539699574,1.6026004,3120.9,3120.7,2.30681204]
[1642539699774,0.3,3120.8,3120.7,0.00341054]
[1642539699973,0.3,3120.8,3120.4,3.86446169]
[1642539700174,0.92939,3120.7,3120.4,3.86446169]
[1642539700374,0.3,3120.6,3120.4,3.86446169]
[1642539700576,1.1014073,3120.6,3120.4,3.86446169]
[1642539701279,2.02471116,3120.6,3120.4,3.86446169]
[1642539703129,0.3,3120.6,3120.4,3.86446169]
[1642539703530,1.73032,3121.3,3120.4,3.86446169]
[1642539703731,1.73032,3121.3,3120.5,0.80125]
[1642539703732,1.60232,3121.3,3120.5,0.80125]
[1642539703929,1.60232,3121.3,3120.5,0.92925]
[1642539704129,0.28819,3121.5,3120.9,1.19152877]
[1642539704333,0.28819,3121.5,3121.0,1.68840386]
[1642539704334,0.16019,3121.5,3121.0,1.68840386]
[1642539704529,0.80108,3121.3,3121.0,1.69010913]
[1642539704730,0.128,3121.5,3121.2,0.80101]
[1642539704931,0.128,3121.9,3121.2,0.80101]
[1642539705129,0.128,3121.9,3121.3,0.128]
[1642539705329,0.00113685,3121.5,3121.3,1.72984]
[1642539705531,0.00113685,3121.5,3121.3,2.72984]
[1642539705730,0.00113685,3121.5,3121.4,7.0368934]
[1642539705987,0.00113685,3121.5,3121.4,7.4988934]
[1642539706178,0.00113685,3121.5,3121.4,8.4988934]
[1642539706680,0.00113685,3121.5,3121.4,2.26292]
[1642539707078,0.00113685,3121.5,3121.4,2.39092]
[1642539707279,0.00113685,3121.5,3121.4,1.39092]
[1642539708681,0.00113685,3121.5,3121.4,0.462]
[1642539709279,0.00113685,3121.5,3121.1,0.00113684]
[1642539709722,5.16075123,3121.5,3121.1,0.00113684]
[1642539709923,2.40451685,3121.5,3121.1,0.00113684]
[1642539710325,5.15867235,3121.5,3121.1,0.00113684]
[1642539712331,5.28667235,3121.5,3121.1,0.00113684]
[1642539712733,1.6024805,3121.4,3121.1,0.00113684]
[1642539712933,0.80125,3121.3,3121.1,0.00113684]
[1642539713133,1.10125,3121.3,3121.1,0.00113684]
[1642539714376,1.10125,3121.3,3121.0,0.00170527]
[1642539714574,2.40363,3121.2,3120.8,0.00284211]
[1642539715180,1.10125,3121.3,3120.8,0.00284211]
[1642539715579,1.10125,3121.3,3120.8,0.46484211]
[1642539715779,0.3,3121.3,3120.9,2.29572971]
[1642539715980,0.00113685,3121.5,3121.1,1.28426366]
[1642539716379,0.00113685,3121.5,3121.2,0.128]
[1642539716580,0.00113685,3121.5,3121.2,0.59]
[1642539717627,0.00113685,3121.5,3121.2,2.39096]
[1642539718729,0.00113685,3121.5,3121.3,2.71969031]
[1642539718928,0.00113685,3121.5,3121.4,6.52896]
[1642539720129,0.00113685,3121.5,3121.4,9.0706055]
[1642539720334,0.00113685,3121.5,3121.4,14.15845052]
[1642539720531,0.5405548,3122.0,3121.5,5.6]
[1642539720732,0.5405548,3122.0,3121.6,4.37546822]
[1642539720980,0.00227369,3121.9,3121.6,5.59085463]
[1642539721172,0.00227369,3121.9,3121.7,1.46365292]
[1642539721372,0.00170527,3121.8,3121.7,7.3843782]
[1642539721572,0.00170527,3121.8,3121.7,5.62403868]
[1642539721772,0.00170527,3121.8,3121.7,11.03955909]
[1642539721972,0.5405548,3122.0,3121.8,0.80073]
[1642539722177,0.53884963,3122.0,3121.9,8.59543134]
[1642539722376,0.53884963,3122.0,3121.9,10.47953157]
[1642539722576,0.53998648,3122.0,3121.9,6.02953157]
[1642539722777,0.53998648,3122.0,3121.9,8.74922188]
[1642539722977,0.53998648,3122.0,3121.9,6.06579054]
[1642539723579,0.44705031,3122.0,3121.9,8.80469736]
[1642539725029,0.44705031,3122.0,3121.9,6.06579054]
[1642539726429,0.44705031,3122.0,3121.9,5.06579054]
[1642539729278,0.44705031,3122.0,3121.9,6.06579054]
[1642539729479,0.41222985,3122.0,3121.9,6.59792211]
[1642539731082,0.41222985,3122.0,3121.9,5.06579054]
[1642539740226,0.41222985,3122.0,3121.9,7.81896214]
[1642539740426,0.128,3122.7,3121.9,7.81896214]
[1642539740427,0.128,3122.8,3122.0,5.6]
[1642539740731,0.128,3122.8,3122.3,0.80054]
[1642539740925,0.128,3122.8,3122.4,0.462]
[1642539741326,0.128,3122.8,3122.5,1.76340285]
[1642539741527,0.128,3122.8,3122.6,1.86898228]
[1642539741727,0.128,3122.8,3122.7,4.60062]
[1642539742027,0.13254738,3122.8,3122.7,1.26262]
[1642539742227,0.13254738,3122.8,3122.7,0.462]
[1642539742629,0.13254738,3122.8,3122.5,2.71969031]
[1642539742839,1.2802785,3122.7,3122.5,2.71969031]
[1642539743030,0.13197896,3122.7,3122.5,2.71969031]
[1642539743232,0.00341054,3122.6,3122.5,2.71969031]
[1642539743484,0.00341054,3122.6,3122.1,3.7388]
[1642539743485,0.80077,3122.5,3122.1,3.7388]
[1642539743675,1.60156,3122.5,3121.9,5.64096364]
[1642539743876,0.00227369,3122.4,3121.9,5.64096364]
[1642539744077,0.00227369,3122.4,3122.2,1.90328344]
[1642539744275,0.00227369,3122.4,3122.1,0.80082]
[1642539744276,1.50225051,3122.3,3122.1,0.80082]
[1642539744476,1.50225051,3122.3,3121.9,4.03938364]
[1642539744679,0.00113684,3122.2,3122.0,2.71971388]
[1642539745280,3.76838012,3122.2,3122.0,2.71971388]
[1642539745480,4.06838012,3122.2,3122.0,2.71971388]
[1642539745680,4.06838012,3122.2,3121.7,2.71971388]
[1642539745884,1.90291684,3122.2,3121.7,2.71971388]
[1642539746082,1.90291684,3122.2,3121.8,0.00113685]
[1642539746481,0.8009435,3122.1,3121.8,0.00113685]
[1642539746679,2.4029335,3122.1,3121.8,0.00113685]
[1642539746881,3.2039335,3122.1,3121.8,0.00113685]
[1642539747331,0.3,3122.0,3121.8,0.00113685]
[1642539747731,1.101006,3122.0,3121.8,0.00113685]
[1642539748833,0.3,3122.0,3121.8,0.00113685]
[1642539750636,0.3,3122.0,3121.8,0.80204685]
[1642539750837,1.6019,3122.1,3121.8,0.80204685]
[1642539751681,0.80202684,3122.2,3121.9,2.72008889]
[1642539751682,0.00113684,3122.2,3121.9,2.72008889]
[1642539751878,0.00113684,3122.2,3121.9,4.32165889]
[1642539752282,0.00113684,3122.2,3122.0,0.462]
[1642539752682,0.00113684,3122.2,3122.1,8.58516831]
[1642539752890,0.00113684,3122.2,3122.1,11.83448047]
[1642539753085,0.00113684,3122.2,3122.1,13.73568047]
[1642539753283,0.00113684,3122.2,3122.1,15.2194927]
[1642539753689,0.00113684,3122.2,3122.1,17.93958159]
[1642539754085,0.00113684,3122.2,3122.1,16.45576936]
[1642539754284,0.00113684,3122.2,3122.1,13.6684572]
[1642539758235,0.00113684,3122.2,3122.1,8.0684572]
[1642539758493,0.00113684,3122.2,3122.1,7.2952572]
[1642539758687,0.00113684,3122.2,3122.1,6.1672572]
[1642539759385,0.00113684,3122.2,3122.1,5.3666072]
[1642539759588,0.00113684,3122.2,3122.1,4.9046072]
[1642539760392,0.30113684,3122.2,3122.1,4.9046072]
[1642539760794,0.30113684,3122.2,3122.1,2.72008889]
[1642539761795,2.51070405,3122.2,3122.1,2.72008889]
[1642539761995,0.30113684,3122.2,3122.1,2.72008889]
[1642539762433,5.4,3122.1,3121.8,0.00113685]
[1642539762631,1.7301929,3122.1,3121.8,0.00113685]
[1642539762831,3.3323889,3122.1,3121.9,2.0979013]
[1642539763031,0.3,3122.0,3121.5,0.00284212]
[1642539763231,1.60225,3121.9,3121.5,0.00284212]
[1642539763432,1.60225,3121.9,3121.3,0.00397897]
[1642539763631,2.4033406,3121.9,3121.3,0.00397897]
[1642539763833,0.80112,3121.8,3121.3,0.00397897]
[1642539764033,0.3,3121.7,3121.3,0.00397897]
[1642539764235,1.10112,3121.7,3121.3,0.00397897]
[1642539764434,1.60224,3121.6,3121.5,1.95937383]
[1642539764834,1.60224,3121.6,3121.5,1.96221595]
[1642539766491,1.60224,3121.6,3121.5,0.00284212]
[1642539766895,1.60224,3121.6,3121.2,0.00454739]
[1642539767095,2.40332,3121.6,3121.2,0.00454739]
[1642539767294,0.80108,3121.5,3121.2,0.00454739]
[1642539767897,1.10108,3121.5,3121.2,0.00454739]
[1642539768496,1.90217,3121.5,3121.3,2.31858204]
[1642539768795,1.90217,3121.5,3121.4,0.00341054]
[1642539768796,1.60217,3121.5,3121.4,0.00341054]
[1642539768998,6.3313253,3121.5,3121.4,0.00341054]
[1642539769297,5.5302453,3121.5,3121.4,0.00341054]
[1642539770331,2.0302453,3121.5,3121.4,0.00341054]
[1642539771633,0.80124,3121.2,3120.7,0.00738951]
[1642539771832,1.60247,3121.2,3120.7,0.00738951]
[1642539772034,1.10123,3121.2,3120.7,0.00738951]
[1642539772834,0.80124,3121.1,3120.7,0.00738951]
[1642539773876,0.80124,3121.1,3120.8,1.86079668]
[1642539774175,0.80124,3121.1,3120.9,0.00625266]
[1642539776981,1.90237,3121.2,3120.9,0.00625266]
[1642539777238,0.80109,3121.4,3120.9,0.00625266]
[1642539777432,0.20403368,3121.9,3120.9,0.00625266]
[1642539777433,0.20403368,3122.1,3121.1,0.85792319]
[1642539777631,0.20403368,3122.1,3121.3,2.17233384]
[1642539777831,0.20403368,3122.1,3121.8,1.38619052]
[1642539778032,0.20403368,3122.1,3121.9,2.02336921]
[1642539778232,0.80094,3122.2,3121.9,0.128]
[1642539778433,0.80094,3122.2,3121.5,0.128]
[1642539778633,1.10094,3122.2,3121.4,0.59341054]